fUSD/lending_fUSD_20241111
["ID","MTS","AMOUNT","RATE_DAILY","PERIOD"]
[341923031,1731288643911,-500.0,0.00014997,2]
[341923032,1731288643920,-500.0,0.00014997,2]
[341923033,1731288643930,-500.0,0.00014997,2]
[341923034,1731288643939,-185.09631381,0.00014997,2]
[341923035,1731288643948,-500.0,0.00014997,2]
[341923036,1731288643957,-645.69956065,0.00014997,2]
[341923037,1731288643966,-500.0,0.00014997,2]
[341923038,1731288643975,-500.0,0.00014997,2]
[341923039,1731288643984,-500.0,0.00014997,2]
[341923040,1731288643994,-500.0,0.00014997,2]
[341923041,1731288644003,-204.73891382,0.00014997,2]
[341923042,1731288644013,-500.0,0.00014997,2]
[341923043,1731288644025,-500.0,0.00014997,2]
[341923044,1731288644034,-500.0,0.00014997,2]
[341923045,1731288644043,-500.0,0.00014997,2]
[341923046,1731288644052,-43.73689743,0.00014997,2]
[341923047,1731288644091,-522.80161697,0.00014997,2]
[341923048,1731288644100,-500.0,0.00014997,2]
[341923049,1731288644113,-500.0,0.00014997,2]
[341923050,1731288644122,-500.0,0.00014997,2]
[341923051,1731288644131,-500.0,0.00014997,2]
[341923052,1731288644141,-500.0,0.00014997,2]
[341923053,1731288644150,-500.0,0.00014997,2]
[341923054,1731288644159,-500.0,0.00014997,2]
[341923055,1731288644168,-500.0,0.00014997,2]
[341923056,1731288644177,-500.0,0.00014997,2]
[341923057,1731288644188,-500.0,0.00014997,2]
[341923058,1731288644197,-500.0,0.00014997,2]
[341923059,1731288644206,-500.0,0.00014997,2]
[341923060,1731288644216,-500.0,0.00014997,2]
[341923061,1731288644225,-500.0,0.00014997,2]
[341923062,1731288644244,-500.0,0.00014997,2]
[341923063,1731288644254,-500.0,0.00014997,2]
[341923064,1731288644263,-500.0,0.00014997,2]
[341923065,1731288644274,-500.0,0.00014997,2]
[341923066,1731288644283,-500.0,0.00014997,2]
[341923067,1731288644293,-500.0,0.00014997,2]
[341923068,1731288644304,-1000.0,0.00014997,2]
[341923069,1731288644313,-1000.0,0.00014997,2]
[341923070,1731288644324,-1000.0,0.00014997,2]
[341923071,1731288644334,-500.0,0.00014997,2]
[341923072,1731288644345,-500.0,0.00014997,2]
[341923073,1731288644355,-500.0,0.00014997,2]
[341923074,1731288644365,-500.0,0.00014997,2]
[341923075,1731288644376,-659.33,0.00014997,2]
[341923076,1731288644387,-659.33,0.00014997,2]
[341923078,1731288644397,-500.0,0.00014997,2]
[341923080,1731288644408,-500.0,0.00014997,2]
[341923082,1731288644417,-659.33,0.00014997,2]
[341923084,1731288644426,-500.0,0.00014997,2]
[341923086,1731288644435,-500.0,0.00014997,2]
[341923088,1731288644444,-500.0,0.00014997,2]
[341923090,1731288644453,-500.0,0.00014997,2]
[341923092,1731288644462,-500.0,0.00014997,2]
[341923094,1731288644471,-500.0,0.00014997,2]
[341923096,1731288644479,-500.0,0.00014997,2]
[341923098,1731288644489,-500.0,0.00014997,2]
[341923100,1731288644498,-500.0,0.00014997,2]
[341923102,1731288644507,-590.56,0.00014997,2]
[341923104,1731288644517,-500.0,0.00014997,2]
[341923106,1731288644527,-500.0,0.00014997,2]
[341923108,1731288644536,-500.0,0.00014997,2]
[341923110,1731288644545,-771.17,0.00014997,2]
[341923112,1731288644554,-771.17,0.00014997,2]
[341923114,1731288644563,-771.17,0.00014997,2]
[341923116,1731288644572,-299.51860027,0.00014997,2]
[341923118,1731288644581,-500.0,0.00014997,2]
[341923120,1731288644590,-500.0,0.00014997,2]
[341923122,1731288644599,-567.16,0.00014997,2]
[341923124,1731288644610,-500.0,0.00014997,2]
[341923126,1731288644620,-500.0,0.00014997,2]
[341923128,1731288644629,-507.79,0.00014997,2]
[341923130,1731288644638,-519.75,0.00014997,2]
[341923132,1731288644647,-500.0,0.00014997,2]
[341923134,1731288644656,-519.75,0.00014997,2]
[341923135,1731288644665,-519.75,0.00014997,2]
[341923138,1731288644675,-500.0,0.00014997,2]
[341923139,1731288644684,-500.0,0.00014997,2]
[341923141,1731288644694,-500.0,0.00014997,2]
[341923143,1731288644703,-500.0,0.00014997,2]
[341923145,1731288644713,-500.0,0.00014997,2]
[341923147,1731288644723,-500.0,0.00014997,2]
[341923149,1731288644732,-500.0,0.00014997,2]
[341923151,1731288644741,-500.0,0.00014997,2]
[341923153,1731288644751,-500.0,0.00014997,2]
[341923155,1731288644760,-500.0,0.00014997,2]
[341923157,1731288644770,-500.0,0.00014997,2]
[341923159,1731288644780,-500.0,0.00014997,2]
[341923161,1731288644789,-152.25,0.00014997,2]
[341923163,1731288644799,-500.0,0.00014997,2]
[341923165,1731288644811,-210.430067,0.00014997,2]
[341923167,1731288644820,-500.0,0.00014997,2]
[341923169,1731288644831,-500.0,0.00014997,2]
[341923170,1731288644840,-500.0,0.00014997,2]
[341923171,1731288644849,-500.0,0.00014997,2]
[341923172,1731288644859,-363.55,0.00014997,2]
[341923173,1731288644868,-500.0,0.00014997,2]
[341923174,1731288644878,-500.0,0.00014997,2]
[341923175,1731288644887,-500.0,0.00014997,2]
[341923176,1731288644897,-500.0,0.00014997,2]
[341923177,1731288644909,-500.0,0.00014997,2]
[341923178,1731288644918,-500.0,0.00014997,2]
[341923179,1731288644927,-500.0,0.00014997,2]
[341923180,1731288644938,-500.0,0.00014997,2]
[341923181,1731288644948,-500.0,0.00014997,2]
[341923182,1731288644957,-292.94676005,0.00014997,2]
[341923183,1731288644966,-501.48718433,0.00014997,2]
[341923184,1731288644976,-500.0,0.00014997,2]
[341923185,1731288644985,-470.39023581,0.00014997,2]
[341923186,1731288644995,-187.72552797,0.00014997,2]
[341923187,1731288645004,-503.08532654,0.00014997,2]
[341923188,1731288645013,-368.22785712,0.00014997,2]
[341923189,1731288645024,-503.2414727,0.00014997,2]
[341923190,1731288645033,-260202.21788623,0.00014998,2]
[341923193,1731288645659,-333.66427049,0.00014996,2]
[341923194,1731288645670,-500.0,0.00014997,2]
[341923195,1731288645681,-500.0,0.00014997,2]
[341923196,1731288645691,-237.39767558,0.00014998,2]
[341923197,1731288645703,-389.71569304,0.00014998,2]
[341923477,1731288767352,225000.0,0.00027,60]
[341923478,1731288915937,213.18,0.00014433,7]
[341923481,1731289063570,533.38,0.00011932,2]
[341923483,1731289414777,937.1662128,0.00027,60]
[341923484,1731289423806,392.79565792,0.00027,60]
[341923486,1731289739074,165.91357503,0.00013,30]
[341923514,1731289831707,-507.55463713,0.0001375,2]
[341923515,1731289831716,-408.42,0.00013844,2]
[341923516,1731289831725,-391.58,0.00013848,2]
[341923517,1731289831733,-192.2,0.00013849,2]
[341923518,1731289831742,-291.94,0.00013852,2]
[341923519,1731289831751,-250.0,0.00013854,2]
[341923520,1731289831760,-1000.0,0.00013858,2]
[341923521,1731289831769,-3826.91,0.00013861,2]
[341923522,1731289831778,-533.38,0.00014196,2]
[341923523,1731289831787,-235.0,0.00014313,2]
[341923524,1731289831796,-150.0,0.0001473,2]
[341923525,1731289831805,-150.0,0.00014731,2]
[341923526,1731289831816,-185.65791407,0.00014794,2]
[341923527,1731289831825,-150.0,0.00014797,2]
[341923528,1731289831834,-847.6028,0.00014798,2]
[341923529,1731289831843,-1204.19473043,0.00014799,2]
[341923530,1731289831852,-150.0,0.00014799,2]
[341923531,1731289831861,-330.7509,0.000148,2]
[341923532,1731289831872,-588.29469583,0.000148,2]
[341923533,1731289831882,-9249.0679,0.000148,2]
[341923534,1731289831891,-1302.3342,0.000148,2]
[341923535,1731289831900,-1000.0,0.000148,2]
[341923536,1731289831909,-157.92395307,0.000148,2]
[341923537,1731289831918,-170.00403983,0.000148,2]
[341923538,1731289831928,-1204.19473039,0.0001481,2]
[341923539,1731289831937,-1204.19473039,0.00014821,2]
[341923540,1731289831946,-170.00403979,0.00014825,2]
[341923541,1731289831956,-1204.19473039,0.00014833,2]
[341923542,1731289831965,-150.0,0.00014835,2]
[341923543,1731289831974,-281.04546829,0.00014835,2]
[341923544,1731289831982,-1204.19473039,0.00014844,2]
[341923545,1731289831992,-170.00403979,0.0001485,2]
[341923546,1731289832003,-1204.19473039,0.00014855,2]
[341923547,1731289832011,-150.0,0.00014862,2]
[341923548,1731289832020,-1204.19473039,0.00014866,2]
[341923549,1731289832030,-160.29535457,0.00014873,2]
[341923550,1731289832039,-500.0,0.00014873,2]
[341923551,1731289832048,-160.4637558,0.00014873,2]
[341923552,1731289832057,-151.12581097,0.00014873,2]
[341923553,1731289832066,-501.51360531,0.00014873,2]
[341923554,1731289832075,-170.00403979,0.00014875,2]
[341923555,1731289832084,-1204.19473039,0.00014878,2]
[341923556,1731289832093,-150.0,0.00014883,2]
[341923557,1731289832101,-150.0,0.00014885,2]
[341923558,1731289832110,-150.0,0.00014886,2]
[341923559,1731289832119,-1204.19473039,0.00014889,2]
[341923560,1731289832128,-208.34639827,0.0001489,2]
[341923561,1731289832137,-208.34639827,0.0001489,2]
[341923562,1731289832146,-500.0,0.00014897,2]
[341923563,1731289832155,-259.80163212,0.00014897,2]
[341923564,1731289832163,-500.0,0.00014898,2]
[341923565,1731289832174,-500.50556419,0.00014898,2]
[341923566,1731289832183,-234.89795519,0.00014898,2]
[341923567,1731289832192,-500.0,0.00014898,2]
[341923568,1731289832201,-500.0,0.00014898,2]
[341923569,1731289832210,-567.5954521,0.00014898,2]
[341923570,1731289832219,-482.98594983,0.00014898,2]
[341923571,1731289832229,-514.1709305,0.00014898,2]
[341923572,1731289832240,-419.38954854,0.00014898,2]
[341923573,1731289832250,-500.0,0.00014898,2]
[341923574,1731289832260,-500.0,0.00014898,2]
[341923575,1731289832270,-500.0,0.00014898,2]
[341923576,1731289832280,-500.0,0.00014898,2]
[341923577,1731289832290,-504.20234423,0.00014898,2]
[341923578,1731289832299,-507.32165649,0.00014898,2]
[341923579,1731289832308,-500.0,0.00014898,2]
[341923580,1731289832317,-526.55340284,0.00014898,2]
[341923581,1731289832326,-500.0,0.00014898,2]
[341923582,1731289832335,-500.0,0.00014898,2]
[341923583,1731289832344,-500.0,0.00014898,2]
[341923584,1731289832353,-595.07078886,0.00014898,2]
[341923585,1731289832361,-500.0,0.00014898,2]
[341923586,1731289832370,-500.0,0.00014898,2]
[341923587,1731289832379,-200.18221545,0.00014898,2]
[341923588,1731289832388,-176.88893397,0.00014898,2]
[341923589,1731289832398,-622.89123832,0.00014898,2]
[341923590,1731289832413,-584.46268675,0.00014898,2]
[341923591,1731289832427,-500.0,0.00014898,2]
[341923592,1731289832436,-500.0,0.00014898,2]
[341923593,1731289832446,-477.4276851,0.00014898,2]
[341923594,1731289832455,-500.0,0.00014898,2]
[341923595,1731289832465,-500.0,0.00014898,2]
[341923596,1731289832478,-500.0,0.00014898,2]
[341923597,1731289832487,-74531.7772,0.00014898,2]
[341923598,1731289832496,-500.0,0.00014899,2]
[341923599,1731289832506,-199.25014935,0.00014899,2]
[341923600,1731289832516,-500.0,0.00014899,2]
[341923601,1731289832525,-500.0,0.00014899,2]
[341923602,1731289832534,-606.62,0.00014899,2]
[341923603,1731289832545,-500.0,0.00014899,2]
[341923604,1731289832554,-500.0,0.00014899,2]
[341923605,1731289832564,-248.56587725,0.00014899,2]
[341923606,1731289832574,-211.87636388,0.00014899,2]
[341923607,1731289832583,-271.90214163,0.00014899,2]
[341923608,1731289832592,-312.81060079,0.00014899,2]
[341923609,1731289832602,-500.0,0.00014899,2]
[341923610,1731289832612,-500.0,0.00014899,2]
[341923611,1731289832622,-500.0,0.00014899,2]
[341923612,1731289832633,-301.05078918,0.00014899,2]
[341923613,1731289832642,-500.0,0.00014899,2]
[341923614,1731289832651,-171.56551595,0.00014899,2]
[341923615,1731289832660,-500.0,0.00014899,2]
[341923616,1731289832669,-500.0,0.00014899,2]
[341923617,1731289832682,-500.0,0.00014899,2]
[341923618,1731289832692,-500.0,0.00014899,2]
[341923619,1731289832701,-500.0,0.00014899,2]
[341923620,1731289832711,-500.0,0.00014899,2]
[341923621,1731289832720,-500.0,0.00014899,2]
[341923622,1731289832730,-500.0,0.00014899,2]
[341923623,1731289832739,-528.50957352,0.00014899,2]
[341923624,1731289832747,-500.0,0.00014899,2]
[341923625,1731289832756,-500.0,0.00014899,2]
[341923626,1731289832766,-266.67237741,0.00014899,2]
[341923627,1731289832775,-421.43105621,0.00014899,2]
[341923628,1731289832784,-504.37202845,0.00014899,2]
[341923629,1731289832793,-500.0,0.00014899,2]
[341923630,1731289832802,-500.0,0.00014899,2]
[341923631,1731289832812,-500.0,0.00014899,2]
[341923632,1731289832821,-500.0,0.00014899,2]
[341923633,1731289832830,-500.0,0.00014899,2]
[341923634,1731289832839,-500.0,0.00014899,2]
[341923635,1731289832848,-183.16460249,0.00014899,2]
[341923636,1731289832857,-500.0,0.00014899,2]
[341923637,1731289832866,-500.0,0.00014899,2]
[341923638,1731289832876,-500.0,0.00014899,2]
[341923639,1731289832885,-500.0,0.00014899,2]
[341923640,1731289832895,-500.0,0.00014899,2]
[341923641,1731289832904,-500.0,0.00014899,2]
[341923642,1731289832913,-500.0,0.00014899,2]
[341923643,1731289832924,-394.39450968,0.00014899,2]
[341923644,1731289832933,-501.06724385,0.00014899,2]
[341923645,1731289832943,-638.65446119,0.00014899,2]
[341923646,1731289832952,-500.0,0.00014899,2]
[341923647,1731289832961,-500.0,0.00014899,2]
[341923648,1731289832971,-503.85822371,0.00014899,2]
[341923649,1731289832979,-877.09,0.00014899,2]
[341923650,1731289832988,-877.09,0.00014899,2]
[341923651,1731289832998,-877.09,0.00014899,2]
[341923652,1731289833007,-877.09,0.00014899,2]
[341923653,1731289833016,-877.09,0.00014899,2]
[341923654,1731289833025,-877.09,0.00014899,2]
[341923655,1731289833035,-877.09,0.00014899,2]
[341923656,1731289833044,-877.09,0.00014899,2]
[341923657,1731289833054,-877.09,0.00014899,2]
[341923658,1731289833063,-877.09,0.00014899,2]
[341923659,1731289833073,-877.09,0.00014899,2]
[341923660,1731289833083,-877.09,0.00014899,2]
[341923661,1731289833092,-877.09,0.00014899,2]
[341923662,1731289833102,-877.09,0.00014899,2]
[341923663,1731289833112,-735.61,0.00014899,2]
[341923664,1731289833122,-735.61,0.00014899,2]
[341923665,1731289833131,-735.61,0.00014899,2]
[341923666,1731289833141,-735.61,0.00014899,2]
[341923667,1731289833151,-735.61,0.00014899,2]
[341923668,1731289833161,-735.61,0.00014899,2]
[341923669,1731289833172,-735.61,0.00014899,2]
[341923670,1731289833183,-735.61,0.00014899,2]
[341923671,1731289833193,-735.61,0.00014899,2]
[341923672,1731289833204,-735.61,0.00014899,2]
[341923673,1731289833214,-735.61,0.00014899,2]
[341923674,1731289833223,-735.61,0.00014899,2]
[341923675,1731289833233,-735.61,0.00014899,2]
[341923676,1731289833243,-735.61,0.00014899,2]
[341923677,1731289833252,-500.0,0.00014899,2]
[341923678,1731289833262,-500.0,0.00014899,2]
[341923679,1731289833272,-500.0,0.00014899,2]
[341923680,1731289833282,-500.0,0.00014899,2]
[341923681,1731289833292,-599.10590086,0.00014899,2]
[341923682,1731289833301,-500.0,0.00014899,2]
[341923683,1731289833311,-500.0,0.00014899,2]
[341923684,1731289833320,-500.0,0.00014899,2]
[341923685,1731289833329,-500.0,0.00014899,2]
[341923686,1731289833339,-500.0,0.00014899,2]
[341923687,1731289833349,-500.0,0.00014899,2]
[341923688,1731289833359,-500.0,0.00014899,2]
[341923689,1731289833368,-500.0,0.00014899,2]
[341923690,1731289833378,-500.0,0.00014899,2]
[341923691,1731289833387,-500.0,0.00014899,2]
[341923692,1731289833396,-500.0,0.00014899,2]
[341923693,1731289833405,-205.63821023,0.00014899,2]
[341923694,1731289833414,-383.16,0.00014899,2]
[341923695,1731289833425,-500.0,0.00014899,2]
[341923696,1731289833435,-500.0,0.00014899,2]
[341923697,1731289833444,-500.0,0.00014899,2]
[341923698,1731289833453,-283.34596852,0.00014899,2]
[341923699,1731289833462,-161.55614262,0.00014899,2]
[341923700,1731289833472,-500.0,0.00014899,2]
[341923701,1731289833481,-584.52626351,0.00014899,2]
[341923702,1731289833495,-679.61,0.00014899,2]
[341923703,1731289833504,-679.61,0.00014899,2]
[341923704,1731289833514,-679.61,0.00014899,2]
[341923705,1731289833524,-679.61,0.00014899,2]
[341923706,1731289833534,-679.61,0.00014899,2]
[341923707,1731289833543,-679.61,0.00014899,2]
[341923708,1731289833553,-679.61,0.00014899,2]
[341923709,1731289833562,-679.61,0.00014899,2]
[341923710,1731289833571,-679.61,0.00014899,2]
[341923711,1731289833581,-679.61,0.00014899,2]
[341923712,1731289833590,-679.61,0.00014899,2]
[341923713,1731289833599,-679.61,0.00014899,2]
[341923714,1731289833609,-679.61,0.00014899,2]
[341923715,1731289833618,-679.61,0.00014899,2]
[341923716,1731289833627,-205.85456618,0.00014899,2]
[341923717,1731289833636,-500.0,0.00014899,2]
[341923718,1731289833646,-500.0,0.00014899,2]
[341923719,1731289833656,-344.12917332,0.00014899,2]
[341923720,1731289833666,-500.0,0.00014899,2]
[341923721,1731289833678,-525.27478616,0.00014899,2]
[341923722,1731289833688,-500.0,0.00014899,2]
[341923723,1731289833698,-500.0,0.00014899,2]
[341923724,1731289833708,-500.0,0.00014899,2]
[341923725,1731289833718,-500.0,0.00014899,2]
[341923726,1731289833728,-507.56856532,0.00014899,2]
[341923727,1731289833737,-500.0,0.00014899,2]
[341923728,1731289833747,-500.0,0.00014899,2]
[341923729,1731289833756,-500.0,0.00014899,2]
[341923730,1731289833766,-500.0,0.00014899,2]
[341923731,1731289833775,-500.0,0.00014899,2]
[341923732,1731289833784,-326.17719734,0.00014899,2]
[341923733,1731289833794,-434.36437379,0.00014899,2]
[341923734,1731289833803,-500.0,0.00014899,2]
[341923735,1731289833813,-500.0,0.00014899,2]
[341923736,1731289833823,-501.26709916,0.00014899,2]
[341923737,1731289833832,-500.0,0.00014899,2]
[341923738,1731289833842,-500.0,0.00014899,2]
[341923739,1731289833851,-510.0,0.00014899,2]
[341923740,1731289834057,-560.45903233,0.00014899,2]
[341923741,1731289834068,-500.0,0.00014899,2]
[341923742,1731289834078,-500.0,0.00014899,2]
[341923743,1731289834088,-500.0,0.00014899,2]
[341923744,1731289834098,-500.0,0.00014899,2]
[341923745,1731289834107,-500.0,0.00014899,2]
[341923746,1731289834117,-500.0,0.00014899,2]
[341923747,1731289834127,-548.60334006,0.00014899,2]
[341923748,1731289834137,-500.0,0.00014899,2]
[341923749,1731289834147,-500.0,0.00014899,2]
[341923750,1731289834157,-356.16949742,0.00014899,2]
[341923751,1731289834166,-163.78566328,0.00014899,2]
[341923752,1731289834179,-500.0,0.00014899,2]
[341923753,1731289834188,-500.0,0.00014899,2]
[341923754,1731289834198,-500.0,0.00014899,2]
[341923755,1731289834208,-500.0,0.00014899,2]
[341923756,1731289834217,-500.0,0.00014899,2]
[341923757,1731289834227,-505.61287918,0.00014899,2]
[341923758,1731289834236,-500.0,0.00014899,2]
[341923759,1731289834245,-500.0,0.00014899,2]
[341923760,1731289834254,-500.0,0.00014899,2]
[341923761,1731289834264,-500.0,0.00014899,2]
[341923762,1731289834273,-500.0,0.00014899,2]
[341923763,1731289834282,-500.0,0.00014899,2]
[341923764,1731289834292,-500.0,0.00014899,2]
[341923765,1731289834301,-500.0,0.00014899,2]
[341923766,1731289834311,-500.0,0.00014899,2]
[341923767,1731289834321,-500.0,0.00014899,2]
[341923768,1731289834331,-155.66069884,0.00014899,2]
[341923769,1731289834341,-564.16145467,0.00014899,2]
[341923770,1731289834351,-500.0,0.00014899,2]
[341923771,1731289834361,-500.0,0.00014899,2]
[341923772,1731289834370,-500.0,0.00014899,2]
[341923773,1731289834379,-500.0,0.00014899,2]
[341923774,1731289834391,-510.0142165,0.00014899,2]
[341923775,1731289834400,-527.57471913,0.00014899,2]
[341923776,1731289834410,-560812.72302534,0.000149,2]
[341923777,1731289834421,-25988.72987467,0.000149,3]
[341923778,1731289834474,-342.99375482,0.00014899,2]
[341923779,1731289834486,-236099.35298162,0.000149,3]
[341923780,1731289834497,-41252.56341837,0.000149,3]
[341923781,1731289834524,-11247.34279397,0.000149,3]
[341923784,1731289838044,-3456.73363803,0.000149,2]
[341923785,1731289838055,-10340.25142156,0.000149,2]
[341923786,1731289838065,-4847.40423817,0.000149,3]
[341923787,1731289838076,-1564.2349129,0.000149,3]
[341923845,1731289840350,-885.75230381,0.000149,3]
[341923846,1731289840361,-1122.06499998,0.000149,3]
[341923847,1731289840372,-557.930656,0.000149,3]
[341923848,1731289840386,-650.62900004,0.000149,3]
[341923849,1731289840397,-510.45244229,0.000149,3]
[341923858,1731289843491,-500.0,0.00014899,2]
[341923859,1731289843501,-500.0,0.00014899,2]
[341923860,1731289843510,-500.0,0.00014899,2]
[341923861,1731289843519,-500.0,0.00014899,2]
[341923862,1731289843529,-66744.46760072,0.000149,3]
[341923863,1731289843542,-50130.70468253,0.000149,3]
[341923864,1731289843553,-22962.09038652,0.000149,3]
[341923865,1731289843565,-30072.31634369,0.000149,3]
[341923866,1731289843577,-405.52,0.000149,3]
[341923867,1731289843802,-500.0,0.00014899,2]
[341923868,1731289843812,-660.88251937,0.000149,3]
[341923869,1731289843824,-270.98,0.000149,3]
[341923871,1731289844027,-327.29769941,0.00014899,2]
[341923873,1731289844037,-80686.38472099,0.000149,3]
[341923878,1731289844048,-48200.2692453,0.000149,3]
[341923880,1731289844059,-63643.948176,0.000149,3]
[341923965,1731289845738,-2829.73960146,0.000149,3]
[341923966,1731289845750,-162655.0518609,0.000149,3]
[341923967,1731289845963,-3373.45560892,0.000149,3]
[341923968,1731289846217,-4231.1999994,0.000149,3]
[341924311,1731290011771,480.04,0.00012034,2]
[341924321,1731290679172,150.0,0.00013,5]
[341924323,1731290718180,2373.01,0.000144,7]
[341924324,1731290748844,456.03,0.0001193,2]
[341924325,1731290798147,934.0,8.219e-05,2]
[341924326,1731290798464,934.0,0.00011644,2]
[341924338,1731291032094,-250.0,0.0001384,2]
[341924339,1731291032103,-192.2,0.00013842,2]
[341924340,1731291032113,-253.02,0.00013845,2]
[341924341,1731291032122,-641.84,0.00013899,2]
[341924342,1731291032134,-1000.0,0.00013899,2]
[341924343,1731291032143,-250.0,0.00014,2]
[341924344,1731291032153,-456.03,0.00014194,2]
[341924345,1731291032163,-300.0,0.00014297,2]
[341924346,1731291032172,-18501.0,0.00014298,2]
[341924347,1731291032181,-5929.0,0.00014649,2]
[341924348,1731291032191,-870.30182639,0.00014649,2]
[341924349,1731291032203,-12826.61417361,0.00014649,2]
[341924350,1731291032211,-151.694,0.00014649,2]
[341924351,1731291032221,-1159.0,0.00014649,2]
[341924352,1731291032230,-3000.0,0.000147,2]
[341924353,1731291032240,-150.0,0.0001474,2]
[341924354,1731291032249,-150.0,0.00014771,2]
[341924355,1731291032259,-1500.0,0.00014774,2]
[341924356,1731291032268,-150.0,0.00014784,2]
[341924357,1731291032278,-1000.0,0.00014799,2]
[341924358,1731291032287,-206.08655186,0.000148,2]
[341924359,1731291032297,-250.0,0.000148,3]
[341924360,1731291032307,-247.32,0.000148,2]
[341924361,1731291032316,-170.00403979,0.000148,2]
[341924362,1731291032326,-1032.05783233,0.000148,2]
[341924363,1731291032335,-1500.0,0.00014853,2]
[341924364,1731291032344,-150.0,0.00014853,2]
[341924365,1731291032353,-292.39412265,0.00014866,2]
[341924366,1731291032363,-503.03063412,0.00014873,2]
[341924367,1731291032372,-500.0,0.00014873,2]
[341924368,1731291032385,-347.35582032,0.00014873,2]
[341924369,1731291032394,-150.0,0.00014873,2]
[341924370,1731291032403,-150.0,0.00014874,2]
[341924371,1731291032413,-292.39412265,0.00014878,2]
[341924372,1731291032422,-292.39412265,0.00014889,2]
[341924373,1731291032432,-209.00791397,0.00014897,2]
[341924374,1731291032442,-500.0,0.00014898,2]
[341924375,1731291032451,-500.0,0.00014898,2]
[341924376,1731291032461,-365.14604975,0.00014898,2]
[341924377,1731291032471,-500.0,0.00014898,2]
[341924378,1731291032480,-500.2451703,0.00014898,2]
[341924379,1731291032489,-500.3112866,0.00014898,2]
[341924380,1731291032498,-500.55942672,0.00014898,2]
[341924381,1731291032508,-500.30950341,0.00014898,2]
[341924383,1731291032518,-500.64537215,0.00014898,2]
[341924385,1731291032526,-500.80445252,0.00014898,2]
[341924387,1731291032536,-178.19399084,0.00014898,2]
[341924389,1731291032546,-500.72580577,0.00014898,2]
[341924391,1731291032555,-501.01936859,0.00014898,2]
[341924392,1731291032565,-3401.45735088,0.00014898,2]
[341924393,1731291032579,-21809.76375776,0.00014898,2]
[341924394,1731291032589,-6471.2202801,0.00014898,2]
[341924395,1731291032598,-500.0,0.00014898,2]
[341924396,1731291032608,-500.0,0.00014898,2]
[341924397,1731291032617,-875.45,0.00014898,2]
[341924398,1731291032632,-460.3656473,0.00014898,2]
[341924399,1731291032641,-500.0,0.00014898,2]
[341924400,1731291032649,-785.56,0.00014898,2]
[341924401,1731291032659,-500.0,0.00014898,2]
[341924402,1731291032668,-662.54,0.00014898,2]
[341924403,1731291032677,-500.0,0.00014898,2]
[341924404,1731291032687,-500.0,0.00014898,2]
[341924405,1731291032696,-2951.8052256,0.00014899,2]
[341924406,1731291032705,-500.0,0.00014899,2]
[341924407,1731291032715,-507.6379996,0.00014899,2]
[341924408,1731291032724,-579.31135006,0.00014899,2]
[341924409,1731291032733,-519.05875622,0.00014899,2]
[341924410,1731291032743,-504.70126802,0.00014899,2]
[341924411,1731291032753,-500.57408464,0.00014899,2]
[341924412,1731291032763,-500.0,0.00014899,2]
[341924413,1731291032772,-500.0,0.00014899,2]
[341924414,1731291032781,-500.0,0.00014899,2]